[Event "*** Titled Tuesday Blitz"]
[Site "Chess.com"]
[Date "2021.02.09"]
[Round "10"]
[White "MartinMatthiesen"]
[Black "CzechmVIII"]
[Result "0-1"]
[WhiteElo "2376"]
[BlackElo "2284"]
[TimeControl "180+1"]
[EndTime "11:54:23 PST"]
[Termination "CzechmVIII won on time"]

1. d4 {[%clk 0:03:00.9]} 1... Nf6 {[%clk 0:03:00]} 2. c4 {[%clk 0:02:52.7]} 2...
c5 {[%clk 0:03:00]} 3. d5 {[%clk 0:02:50.2]} 3... b5 {[%clk 0:02:59.9]} 4. cxb5
{[%clk 0:02:49.8]} 4... a6 {[%clk 0:03:00.2]} 5. bxa6 {[%clk 0:02:50.2]} 5... g6
{[%clk 0:03:00.4]} 6. Nc3 {[%clk 0:02:50.4]} 6... Bxa6 {[%clk 0:03:00.4]} 7. e4
{[%clk 0:02:50.3]} 7... Qa5 {[%clk 0:03:00.4]} 8. Bxa6 {[%clk 0:02:20.5]} 8...
Nxa6 {[%clk 0:03:00.2]} 9. Nf3 {[%clk 0:02:05.3]} 9... Nxe4 {[%clk 0:02:55]} 10.
O-O {[%clk 0:02:00.6]} 10... Nxc3 {[%clk 0:02:50.7]} 11. bxc3 {[%clk 0:02:01.5]}
11... Bg7 {[%clk 0:02:50.2]} 12. Qe2 {[%clk 0:01:54]} 12... e6 {[%clk
0:02:30.5]} 13. Bd2 {[%clk 0:01:46.1]} 13... O-O {[%clk 0:02:16.1]} 14. Ne5
{[%clk 0:01:11.7]} 14... exd5 {[%clk 0:02:04.2]} 15. Nxd7 {[%clk 0:00:58.4]}
15... Rfe8 {[%clk 0:02:01.3]} 16. Qd3 {[%clk 0:00:57.6]} 16... c4 {[%clk
0:01:49.1]} 17. Qh3 {[%clk 0:00:54.3]} 17... Re2 {[%clk 0:01:30.9]} 18. Rfd1
{[%clk 0:00:41.2]} 18... Rxd2 {[%clk 0:01:22.3]} 19. Rxd2 {[%clk 0:00:39.8]}
19... Bxc3 {[%clk 0:01:06.2]} 20. Re2 {[%clk 0:00:11.5]} 20... Bxa1 {[%clk
0:00:56.3]} 21. Qf3 {[%clk 0:00:10.9]} 21... Qc3 {[%clk 0:00:45.6]} 22. Qxc3
{[%clk 0:00:01.7]} 22... Bxc3 {[%clk 0:00:45.8]} 23. h4 {[%clk 0:00:01.8]} 23...
d4 {[%clk 0:00:43.2]} 24. Nb6 {[%clk 0:00:01.9]} 24... d3 {[%clk 0:00:41.9]} 0-1

[Event "*** Titled Tuesday Blitz"]
[Site "Chess.com"]
[Date "2021.02.09"]
[Round "10"]
[White "KruHor"]
[Black "Andrakhanova"]
[Result "1-0"]
[WhiteElo "2533"]
[BlackElo "2246"]
[TimeControl "180+1"]
[EndTime "11:54:23 PST"]
[Termination "KruHor won by resignation"]

1. e4 {[%clk 0:02:59]} 1... c5 {[%clk 0:02:27.1]} 2. Nf3 {[%clk 0:02:57.5]} 2...
e6 {[%clk 0:02:27.2]} 3. d4 {[%clk 0:02:56.3]} 3... cxd4 {[%clk 0:02:28.1]} 4.
Nxd4 {[%clk 0:02:56]} 4... Nf6 {[%clk 0:02:24.7]} 5. Nc3 {[%clk 0:02:54.8]} 5...
Nc6 {[%clk 0:02:24.7]} 6. Nf3 {[%clk 0:02:53.2]} 6... Bb4 {[%clk 0:02:22.9]} 7.
Bd3 {[%clk 0:02:52.5]} 7... d5 {[%clk 0:02:22.6]} 8. O-O {[%clk 0:02:44.9]} 8...
Bxc3 {[%clk 0:02:19.8]} 9. exd5 {[%clk 0:02:44.7]} 9... Nxd5 {[%clk 0:02:15]}
10. bxc3 {[%clk 0:02:44.1]} 10... Nxc3 {[%clk 0:02:14.6]} 11. Qe1 {[%clk
0:02:43.5]} 11... Nd5 {[%clk 0:02:09.5]} 12. Ba3 {[%clk 0:02:17.2]} 12... Nce7
{[%clk 0:02:05.5]} 13. Ng5 {[%clk 0:02:14.2]} 13... h6 {[%clk 0:02:00.1]} 14.
Ne4 {[%clk 0:02:08.7]} 14... O-O {[%clk 0:01:57.9]} 15. Rd1 {[%clk 0:02:07.7]}
15... Qc7 {[%clk 0:01:48.1]} 16. c4 {[%clk 0:02:03.5]} 16... Nf4 {[%clk
0:01:47.7]} 17. Bd6 {[%clk 0:02:01.8]} 17... Nxd3 {[%clk 0:01:46.4]} 18. Rxd3
{[%clk 0:01:59.7]} 18... Qd8 {[%clk 0:01:39.7]} 19. Qd2 {[%clk 0:01:47.8]} 19...
Re8 {[%clk 0:01:31.7]} 20. Nf6+ {[%clk 0:01:22.1]} 20... gxf6 {[%clk 0:01:26.6]}
21. Qxh6 {[%clk 0:01:21]} 21... Nf5 {[%clk 0:01:19.7]} 22. Qh5 {[%clk
0:01:13.7]} 22... Nxd6 {[%clk 0:01:03.5]} 23. Rfd1 {[%clk 0:01:11.3]} 23... f5
{[%clk 0:00:55.4]} 24. c5 {[%clk 0:01:03.2]} 24... Qf6 {[%clk 0:00:38.6]} 25.
cxd6 {[%clk 0:01:02]} 25... f4 {[%clk 0:00:20.2]} 26. Rh3 {[%clk 0:01:01.1]}
26... Qg7 {[%clk 0:00:17]} 27. Rh4 {[%clk 0:00:59.9]} 27... e5 {[%clk 0:00:17]}
28. d7 {[%clk 0:00:55]} 28... Bxd7 {[%clk 0:00:17.3]} 29. Rxd7 {[%clk
0:00:54.2]} 29... Rad8 {[%clk 0:00:17.6]} 30. Rg4 {[%clk 0:00:49.7]} 30... Rxd7
{[%clk 0:00:17.3]} 31. Rxg7+ {[%clk 0:00:49.3]} 31... Kxg7 {[%clk 0:00:18.2]}
32. Qg4+ {[%clk 0:00:48.9]} 1-0

[Event "*** Titled Tuesday Blitz"]
[Site "Chess.com"]
[Date "2021.02.09"]
[Round "10"]
[White "karinachess1"]
[Black "Fandorine"]
[Result "0-1"]
[WhiteElo "2553"]
[BlackElo "2856"]
[TimeControl "180+1"]
[EndTime "11:54:29 PST"]
[Termination "Fandorine won by checkmate"]

1. d4 {[%clk 0:03:00.9]} 1... Nf6 {[%clk 0:02:59.8]} 2. Nf3 {[%clk 0:03:00.1]}
2... g6 {[%clk 0:03:00]} 3. g3 {[%clk 0:02:59.8]} 3... Bg7 {[%clk 0:03:00.2]} 4.
Bg2 {[%clk 0:03:00.2]} 4... O-O {[%clk 0:03:00.6]} 5. O-O {[%clk 0:03:00.4]}
5... d6 {[%clk 0:03:01.2]} 6. b3 {[%clk 0:03:00.2]} 6... e5 {[%clk 0:03:00.3]}
7. dxe5 {[%clk 0:02:57.9]} 7... dxe5 {[%clk 0:02:59.7]} 8. Ba3 {[%clk 0:02:54]}
8... e4 {[%clk 0:03:00]} 9. Bxf8 {[%clk 0:02:18.3]} 9... Qxf8 {[%clk 0:03:00.9]}
10. Nd4 {[%clk 0:02:12.6]} 10... e3 {[%clk 0:02:59.5]} 11. f3 {[%clk 0:01:52.2]}
11... Nc6 {[%clk 0:02:57.3]} 12. c3 {[%clk 0:01:49.9]} 12... h5 {[%clk
0:02:57.3]} 13. Qd3 {[%clk 0:01:43.9]} 13... Qe7 {[%clk 0:02:35.6]} 14. Rd1
{[%clk 0:01:33.1]} 14... Bd7 {[%clk 0:02:19.7]} 15. Nxc6 {[%clk 0:01:29.6]}
15... bxc6 {[%clk 0:02:08.3]} 16. a4 {[%clk 0:01:11.7]} 16... h4 {[%clk
0:01:44.5]} 17. Na3 {[%clk 0:00:52.7]} 17... hxg3 {[%clk 0:01:41.1]} 18. hxg3
{[%clk 0:00:53.6]} 18... Bf5 {[%clk 0:01:23.2]} 19. Qc4 {[%clk 0:00:44.2]} 19...
Rf8 {[%clk 0:01:17.5]} 20. Qxc6 {[%clk 0:00:42]} 20... Nh5 {[%clk 0:01:15.1]}
21. g4 {[%clk 0:00:29.2]} 21... Nf4 {[%clk 0:01:14.8]} 22. Nc4 {[%clk 0:00:21]}
22... Nxe2+ {[%clk 0:01:04.6]} 23. Kf1 {[%clk 0:00:17.7]} 23... Nxc3 {[%clk
0:00:53.2]} 24. Re1 {[%clk 0:00:16]} 24... e2+ {[%clk 0:00:50.8]} 25. Kg1 {[%clk
0:00:13.8]} 25... Bd4+ {[%clk 0:00:50.3]} 26. Kh2 {[%clk 0:00:12.9]} 26... Qh4+
{[%clk 0:00:50.7]} 27. Bh3 {[%clk 0:00:13.3]} 27... Qf2+ {[%clk 0:00:50.4]} 28.
Kh1 {[%clk 0:00:13.9]} 28... Qg3 {[%clk 0:00:45.9]} 29. Bg2 {[%clk 0:00:12.9]}
29... Qh4+ {[%clk 0:00:45.8]} 30. Bh3 {[%clk 0:00:08.5]} 30... Qxh3# {[%clk
0:00:45.2]} 0-1

[Event "*** Titled Tuesday Blitz"]
[Site "Chess.com"]
[Date "2021.02.09"]
[Round "10"]
[White "ega2006"]
[Black "rugbyclub"]
[Result "1-0"]
[WhiteElo "2415"]
[BlackElo "2296"]
[TimeControl "180+1"]
[EndTime "11:54:37 PST"]
[Termination "ega2006 won on time"]

1. e4 {[%clk 0:03:00.9]} 1... c5 {[%clk 0:02:50.3]} 2. Nf3 {[%clk 0:03:00.8]}
2... e6 {[%clk 0:02:50.4]} 3. Nc3 {[%clk 0:03:00.3]} 3... a6 {[%clk 0:02:49.4]}
4. d4 {[%clk 0:03:00.8]} 4... cxd4 {[%clk 0:02:49.7]} 5. Nxd4 {[%clk 0:03:01.7]}
5... d6 {[%clk 0:02:49.4]} 6. Bd3 {[%clk 0:03:01.8]} 6... b5 {[%clk 0:02:47.5]}
7. O-O {[%clk 0:03:01.5]} 7... Bb7 {[%clk 0:02:47.3]} 8. Re1 {[%clk 0:03:00.8]}
8... Nd7 {[%clk 0:02:46.7]} 9. Bd2 {[%clk 0:02:52.8]} 9... Qb6 {[%clk
0:02:45.5]} 10. Nf3 {[%clk 0:02:51.5]} 10... Ngf6 {[%clk 0:02:41.5]} 11. a4
{[%clk 0:02:51.3]} 11... b4 {[%clk 0:02:40.8]} 12. a5 {[%clk 0:02:51.9]} 12...
Qc7 {[%clk 0:02:35.3]} 13. Na2 {[%clk 0:02:47.8]} 13... d5 {[%clk 0:02:33.3]}
14. e5 {[%clk 0:02:33.1]} 14... Ne4 {[%clk 0:02:30.4]} 15. Bxb4 {[%clk
0:02:33.2]} 15... Bxb4 {[%clk 0:02:28.1]} 16. Nxb4 {[%clk 0:02:34.1]} 16... O-O
{[%clk 0:02:27.9]} 17. c3 {[%clk 0:02:23.8]} 17... Ndc5 {[%clk 0:02:02.4]} 18.
Bc2 {[%clk 0:02:22.3]} 18... Rfd8 {[%clk 0:01:50]} 19. Nd3 {[%clk 0:02:21.7]}
19... Nd7 {[%clk 0:01:44.5]} 20. Nd4 {[%clk 0:02:11.4]} 20... Rac8 {[%clk
0:01:32.7]} 21. Qh5 {[%clk 0:02:06.3]} 21... g6 {[%clk 0:01:31.4]} 22. Qh6
{[%clk 0:02:03]} 22... Nxc3 {[%clk 0:01:27.3]} 23. bxc3 {[%clk 0:01:53.6]} 23...
Qxc3 {[%clk 0:01:26.4]} 24. Qe3 {[%clk 0:01:43]} 24... Rc4 {[%clk 0:01:24.6]}
25. Rab1 {[%clk 0:01:22.9]} 25... Bc8 {[%clk 0:00:56.7]} 26. Rb4 {[%clk
0:00:56.9]} 26... Kg7 {[%clk 0:00:01.7]} 27. Rxc4 {[%clk 0:00:36.3]} 27... dxc4
{[%clk 0:00:02.6]} 28. Nf4 {[%clk 0:00:36.5]} 1-0

[Event "*** Titled Tuesday Blitz"]
[Site "Chess.com"]
[Date "2021.02.09"]
[Round "10"]
[White "BabyBoss31"]
[Black "anon481216"]
[Result "1-0"]
[WhiteElo "2353"]
[BlackElo "2448"]
[TimeControl "180+1"]
[EndTime "11:54:44 PST"]
[Termination "BabyBoss31 won by checkmate"]

1. d4 {[%clk 0:03:00.9]} 1... Nf6 {[%clk 0:02:58.2]} 2. Bg5 {[%clk 0:03:00.5]}
2... Ne4 {[%clk 0:02:58]} 3. h4 {[%clk 0:03:00.4]} 3... c5 {[%clk 0:02:56.9]} 4.
d5 {[%clk 0:03:00.8]} 4... Qb6 {[%clk 0:02:54.4]} 5. Nd2 {[%clk 0:03:00.8]} 5...
Nxd2 {[%clk 0:02:34.1]} 6. Bxd2 {[%clk 0:02:57.5]} 6... Qxb2 {[%clk 0:02:30.4]}
7. e4 {[%clk 0:02:57.5]} 7... Qb6 {[%clk 0:02:29.7]} 8. Bc3 {[%clk 0:02:41.3]}
8... d6 {[%clk 0:02:28.6]} 9. h5 {[%clk 0:02:37.9]} 9... h6 {[%clk 0:02:28.1]}
10. Nf3 {[%clk 0:02:34.4]} 10... Nd7 {[%clk 0:02:27.5]} 11. Bd3 {[%clk
0:02:33.4]} 11... Nf6 {[%clk 0:02:22.4]} 12. Rb1 {[%clk 0:02:30.2]} 12... Qc7
{[%clk 0:02:22.1]} 13. Qd2 {[%clk 0:02:29]} 13... a6 {[%clk 0:02:13.1]} 14. a4
{[%clk 0:02:27.6]} 14... Bg4 {[%clk 0:02:04.1]} 15. Rh4 {[%clk 0:02:08.9]} 15...
Bd7 {[%clk 0:01:31.8]} 16. a5 {[%clk 0:02:05.2]} 16... O-O-O {[%clk 0:01:25.7]}
17. Rb6 {[%clk 0:01:55.8]} 17... e6 {[%clk 0:01:13.1]} 18. Qe2 {[%clk
0:01:44.9]} 18... exd5 {[%clk 0:01:10.3]} 19. Bxa6 {[%clk 0:01:44.6]} 19... Bc6
{[%clk 0:01:10.1]} 20. Bxf6 {[%clk 0:01:32.9]} 20... gxf6 {[%clk 0:01:07]} 21.
exd5 {[%clk 0:01:31.5]} 21... Bxd5 {[%clk 0:00:57.9]} 22. Qb5 {[%clk 0:01:18.1]}
22... bxa6 {[%clk 0:00:49.9]} 23. Qxa6+ {[%clk 0:01:10]} 23... Kd7 {[%clk
0:00:49.7]} 24. Qb5+ {[%clk 0:00:52.8]} 24... Bc6 {[%clk 0:00:48.1]} 25. Qc4
{[%clk 0:00:49.8]} 25... d5 {[%clk 0:00:45.9]} 26. Qg4+ {[%clk 0:00:49.2]} 26...
Ke8 {[%clk 0:00:39.6]} 27. Qf5 {[%clk 0:00:47.8]} 27... Be7 {[%clk 0:00:34.2]}
28. Rg4 {[%clk 0:00:42.5]} 28... Kf8 {[%clk 0:00:32.4]} 29. Nh4 {[%clk
0:00:40.6]} 29... Re8 {[%clk 0:00:28.1]} 30. Kf1 {[%clk 0:00:30.5]} 30... Bd7
{[%clk 0:00:22.6]} 31. Ng6+ {[%clk 0:00:23.1]} 31... fxg6 {[%clk 0:00:21.9]} 32.
Rxf6+ {[%clk 0:00:21.9]} 32... Bxf6 {[%clk 0:00:21.3]} 33. Qxf6+ {[%clk
0:00:22.1]} 33... Kg8 {[%clk 0:00:21.3]} 34. Rxg6+ {[%clk 0:00:22.4]} 34... Kh7
{[%clk 0:00:21.6]} 35. Qg7# {[%clk 0:00:22]} 1-0

[Event "*** Titled Tuesday Blitz"]
[Site "Chess.com"]
[Date "2021.02.09"]
[Round "10"]
[White "GM_LOADING"]
[Black "UCantHandleDenker"]
[Result "0-1"]
[WhiteElo "2467"]
[BlackElo "2613"]
[TimeControl "180+1"]
[EndTime "11:54:48 PST"]
[Termination "UCantHandleDenker won on time"]

1. d4 {[%clk 0:02:57.1]} 1... Nf6 {[%clk 0:02:59.5]} 2. Nf3 {[%clk 0:02:56.6]}
2... g6 {[%clk 0:02:59.3]} 3. Bg5 {[%clk 0:02:53.7]} 3... Bg7 {[%clk 0:02:59.1]}
4. Nbd2 {[%clk 0:02:52.6]} 4... O-O {[%clk 0:02:58.5]} 5. e3 {[%clk 0:02:46.4]}
5... d6 {[%clk 0:02:58.7]} 6. Bc4 {[%clk 0:02:43.5]} 6... c5 {[%clk 0:02:57.8]}
7. c3 {[%clk 0:02:43.2]} 7... Nc6 {[%clk 0:02:57.3]} 8. O-O {[%clk 0:02:43.3]}
8... Qc7 {[%clk 0:02:55.9]} 9. Re1 {[%clk 0:02:43]} 9... a6 {[%clk 0:02:54.1]}
10. e4 {[%clk 0:02:40.9]} 10... b5 {[%clk 0:02:51.9]} 11. Bf1 {[%clk 0:02:40.9]}
11... cxd4 {[%clk 0:02:48.3]} 12. cxd4 {[%clk 0:02:40.8]} 12... Bg4 {[%clk
0:02:48.9]} 13. h3 {[%clk 0:02:36]} 13... Bxf3 {[%clk 0:02:40.8]} 14. Nxf3
{[%clk 0:02:36.9]} 14... Qb6 {[%clk 0:02:21.3]} 15. Rc1 {[%clk 0:02:32.2]} 15...
Rfc8 {[%clk 0:02:19.2]} 16. e5 {[%clk 0:02:24.8]} 16... Nd5 {[%clk 0:02:07.6]}
17. exd6 {[%clk 0:02:20.3]} 17... exd6 {[%clk 0:02:06.3]} 18. Bd3 {[%clk
0:02:20.4]} 18... Nf6 {[%clk 0:01:46.1]} 19. Qc2 {[%clk 0:01:43.8]} 19... Na7
{[%clk 0:01:30.1]} 20. Qb3 {[%clk 0:01:40.6]} 20... Rxc1 {[%clk 0:01:22.5]} 21.
Rxc1 {[%clk 0:01:41.5]} 21... Rc8 {[%clk 0:01:19.7]} 22. Re1 {[%clk 0:01:40.9]}
22... Nc6 {[%clk 0:01:15.7]} 23. Bc4 {[%clk 0:01:19]} 23... Qc7 {[%clk
0:01:07.4]} 24. Bd3 {[%clk 0:00:52.2]} 24... Qd7 {[%clk 0:01:04.5]} 25. a4
{[%clk 0:00:46.1]} 25... Na5 {[%clk 0:00:54]} 26. Qb4 {[%clk 0:00:44.7]} 26...
Nc4 {[%clk 0:00:53.8]} 27. axb5 {[%clk 0:00:42.7]} 27... Qxb5 {[%clk 0:00:46]}
28. Qxb5 {[%clk 0:00:33.4]} 28... axb5 {[%clk 0:00:46.9]} 29. Rc1 {[%clk
0:00:33.6]} 29... Rb8 {[%clk 0:00:41.9]} 30. b3 {[%clk 0:00:06.8]} 30... Na3
{[%clk 0:00:40.4]} 31. Rc6 {[%clk 0:00:05.1]} 31... Ne8 {[%clk 0:00:33]} 0-1

[Event "*** Titled Tuesday Blitz"]
[Site "Chess.com"]
[Date "2021.02.09"]
[Round "10"]
[White "c_r_e_e_p_e_r"]
[Black "Sjakkerntobi"]
[Result "1-0"]
[WhiteElo "2388"]
[BlackElo "2298"]
[TimeControl "180+1"]
[EndTime "11:54:48 PST"]
[Termination "c_r_e_e_p_e_r won by resignation"]

1. e4 {[%clk 0:03:00.9]} 1... e6 {[%clk 0:02:59]} 2. d4 {[%clk 0:03:01.1]} 2...
d5 {[%clk 0:02:59.7]} 3. Nd2 {[%clk 0:03:01.5]} 3... a6 {[%clk 0:02:56.2]} 4.
Ngf3 {[%clk 0:03:01.2]} 4... Nf6 {[%clk 0:02:56.1]} 5. e5 {[%clk 0:03:01.5]}
5... Nfd7 {[%clk 0:02:56.1]} 6. Bd3 {[%clk 0:03:02.3]} 6... c5 {[%clk
0:02:56.7]} 7. c3 {[%clk 0:03:02.9]} 7... Nc6 {[%clk 0:02:57.1]} 8. O-O {[%clk
0:03:03]} 8... g5 {[%clk 0:02:57.6]} 9. dxc5 {[%clk 0:03:02.7]} 9... g4 {[%clk
0:02:56.7]} 10. Nd4 {[%clk 0:03:02]} 10... Ndxe5 {[%clk 0:02:55.2]} 11. Bc2
{[%clk 0:02:56.6]} 11... Bxc5 {[%clk 0:02:47.4]} 12. N2b3 {[%clk 0:02:54.7]}
12... Bd6 {[%clk 0:02:46.5]} 13. f4 {[%clk 0:02:49.3]} 13... gxf3 {[%clk
0:02:39]} 14. Nxf3 {[%clk 0:02:49.7]} 14... Nxf3+ {[%clk 0:02:16.7]} 15. Qxf3
{[%clk 0:02:50.6]} 15... Qe7 {[%clk 0:02:17.1]} 16. Qh5 {[%clk 0:02:45.5]} 16...
Bd7 {[%clk 0:02:16.6]} 17. Bg5 {[%clk 0:02:45.2]} 17... Qf8 {[%clk 0:02:14.4]}
18. Bf6 {[%clk 0:02:21.4]} 18... Rg8 {[%clk 0:02:13.7]} 19. Bxh7 {[%clk
0:02:17.8]} 19... Rh8 {[%clk 0:02:01.6]} 20. Bxh8 {[%clk 0:02:15.2]} 20... Qxh8
{[%clk 0:02:01.3]} 21. Rxf7 {[%clk 0:01:54.6]} 21... O-O-O {[%clk 0:01:59.4]}
22. Bg6 {[%clk 0:01:19.8]} 22... Qxh5 {[%clk 0:01:53.7]} 23. Bxh5 {[%clk
0:01:20]} 23... Be8 {[%clk 0:01:54.6]} 24. Rh7 {[%clk 0:01:17.8]} 24... e5
{[%clk 0:01:49.6]} 25. Bxe8 {[%clk 0:01:11]} 25... Rxe8 {[%clk 0:01:50.4]} 26.
Rf1 {[%clk 0:01:11.5]} 26... Nd8 {[%clk 0:01:45.6]} 27. Rd1 {[%clk 0:01:02]}
27... e4 {[%clk 0:01:43.3]} 28. Rxd5 {[%clk 0:00:59.9]} 28... e3 {[%clk
0:01:43.8]} 29. Nd4 {[%clk 0:00:47.2]} 29... Nc6 {[%clk 0:01:26.9]} 30. Nf3
{[%clk 0:00:33.2]} 30... Ne5 {[%clk 0:01:15]} 31. Nxe5 {[%clk 0:00:25]} 31...
Bxe5 {[%clk 0:01:15.2]} 32. Kf1 {[%clk 0:00:17.8]} 32... Bf4 {[%clk 0:01:11.8]}
33. Ke2 {[%clk 0:00:16.9]} 33... Rg8 {[%clk 0:01:08]} 34. g3 {[%clk 0:00:16.5]}
34... Bb8 {[%clk 0:01:04.6]} 35. Rdd7 {[%clk 0:00:16.4]} 35... b5 {[%clk
0:01:01.8]} 36. Kxe3 {[%clk 0:00:15.6]} 36... Re8+ {[%clk 0:01:01.8]} 37. Rhe7
{[%clk 0:00:15.8]} 37... Rh8 {[%clk 0:01:01.7]} 38. Rh7 {[%clk 0:00:14]} 38...
Re8+ {[%clk 0:01:01.4]} 39. Rde7 {[%clk 0:00:14.5]} 39... Rf8 {[%clk 0:00:58.6]}
40. Ref7 {[%clk 0:00:13.5]} 40... Re8+ {[%clk 0:00:58.6]} 41. Kf3 {[%clk
0:00:14]} 41... Re3+ {[%clk 0:00:57.9]} 42. Kxe3 {[%clk 0:00:13]} 42... Bc7
{[%clk 0:00:53.5]} 43. Rxc7+ {[%clk 0:00:12.4]} 43... Kd8 {[%clk 0:00:53.3]} 44.
Ra7 {[%clk 0:00:12.7]} 1-0

[Event "*** Titled Tuesday Blitz"]
[Site "Chess.com"]
[Date "2021.02.09"]
[Round "10"]
[White "Skatchkov_V"]
[Black "eduardoperalta"]
[Result "0-1"]
[WhiteElo "2524"]
[BlackElo "2424"]
[TimeControl "180+1"]
[EndTime "11:54:50 PST"]
[Termination "eduardoperalta won by resignation"]

1. d4 {[%clk 0:02:59.6]} 1... Nf6 {[%clk 0:02:59.1]} 2. c4 {[%clk 0:02:59.8]}
2... g6 {[%clk 0:02:58.9]} 3. Nf3 {[%clk 0:03:00]} 3... Bg7 {[%clk 0:02:58.3]}
4. g3 {[%clk 0:03:00.6]} 4... c6 {[%clk 0:02:57.6]} 5. Bg2 {[%clk 0:02:59.2]}
5... d5 {[%clk 0:02:57.8]} 6. O-O {[%clk 0:02:59.5]} 6... O-O {[%clk 0:02:57.6]}
7. a4 {[%clk 0:03:00.4]} 7... Bf5 {[%clk 0:02:32.1]} 8. Nc3 {[%clk 0:02:55.4]}
8... Ne4 {[%clk 0:02:28.3]} 9. cxd5 {[%clk 0:02:52.3]} 9... cxd5 {[%clk
0:02:27.1]} 10. Qb3 {[%clk 0:02:52.2]} 10... Nc6 {[%clk 0:02:20.8]} 11. Qxb7
{[%clk 0:02:33.7]} 11... Nxd4 {[%clk 0:02:19.1]} 12. Nxd4 {[%clk 0:02:34.1]}
12... Bxd4 {[%clk 0:02:17.2]} 13. Nxd5 {[%clk 0:02:34.6]} 13... Rb8 {[%clk
0:02:02.4]} 14. Nxe7+ {[%clk 0:02:29.1]} 14... Kh8 {[%clk 0:02:01.8]} 15. Qd5
{[%clk 0:02:20.3]} 15... Qxd5 {[%clk 0:01:39.4]} 16. Nxd5 {[%clk 0:02:21.2]}
16... Bxb2 {[%clk 0:01:40]} 17. Bxb2+ {[%clk 0:02:22.1]} 17... Rxb2 {[%clk
0:01:39.5]} 18. g4 {[%clk 0:02:23]} 18... Nd2 {[%clk 0:01:29.3]} 19. gxf5 {[%clk
0:02:22.2]} 19... Nxf1 {[%clk 0:01:28.4]} 20. Bxf1 {[%clk 0:02:15.3]} 20... gxf5
{[%clk 0:01:27.5]} 21. e3 {[%clk 0:02:14.5]} 21... Rd8 {[%clk 0:01:19.4]} 22.
Nf4 {[%clk 0:02:00.8]} 22... Rdd2 {[%clk 0:01:18.2]} 23. Rc1 {[%clk 0:02:01.7]}
23... Rxf2 {[%clk 0:01:12.5]} 24. Nd3 {[%clk 0:02:02]} 24... Rfc2 {[%clk
0:01:06.3]} 25. Rd1 {[%clk 0:01:47.3]} 25... Ra2 {[%clk 0:01:02.8]} 26. Nb4
{[%clk 0:01:07]} 26... Rd2 {[%clk 0:01:01.6]} 27. Nxa2 {[%clk 0:01:07.3]} 27...
Rxd1 {[%clk 0:01:00.9]} 28. Nc3 {[%clk 0:01:05.5]} 28... Rc1 {[%clk 0:00:59.8]}
29. Nd5 {[%clk 0:01:05.2]} 29... Ra1 {[%clk 0:00:56.8]} 30. Ne7 {[%clk
0:00:49.1]} 30... Rxa4 {[%clk 0:00:54.9]} 31. Nxf5 {[%clk 0:00:49.3]} 31... Ra1
{[%clk 0:00:54.2]} 32. Kf2 {[%clk 0:00:49.1]} 32... a5 {[%clk 0:00:53.9]} 33.
Nd4 {[%clk 0:00:49.5]} 33... a4 {[%clk 0:00:53.6]} 34. Bc4 {[%clk 0:00:48]}
34... a3 {[%clk 0:00:52.1]} 35. Bxf7 {[%clk 0:00:23.3]} 35... a2 {[%clk
0:00:48.7]} 36. Nc2 {[%clk 0:00:17.2]} 36... Rc1 {[%clk 0:00:45.7]} 0-1

[Event "*** Titled Tuesday Blitz"]
[Site "Chess.com"]
[Date "2021.02.09"]
[Round "10"]
[White "VladimirBugayev"]
[Black "kai_nov"]
[Result "0-1"]
[WhiteElo "2278"]
[BlackElo "2369"]
[TimeControl "180+1"]
[EndTime "11:54:52 PST"]
[Termination "kai_nov won on time"]

1. e4 {[%clk 0:02:59.9]} 1... c5 {[%clk 0:02:59.6]} 2. Nc3 {[%clk 0:02:59.4]}
2... e6 {[%clk 0:02:59.3]} 3. f4 {[%clk 0:02:58.3]} 3... d5 {[%clk 0:02:58.9]}
4. Nf3 {[%clk 0:02:57.4]} 4... dxe4 {[%clk 0:02:55.6]} 5. Nxe4 {[%clk
0:02:57.2]} 5... Nc6 {[%clk 0:02:53.9]} 6. d3 {[%clk 0:02:56.8]} 6... Be7 {[%clk
0:02:50.7]} 7. b3 {[%clk 0:02:54.1]} 7... Nf6 {[%clk 0:02:47.9]} 8. Bb2 {[%clk
0:02:54]} 8... O-O {[%clk 0:02:38.8]} 9. Be2 {[%clk 0:02:39.5]} 9... Nd5 {[%clk
0:02:38.3]} 10. Qd2 {[%clk 0:02:19.6]} 10... f5 {[%clk 0:02:30.2]} 11. Nf2
{[%clk 0:01:54.4]} 11... Qc7 {[%clk 0:02:23.9]} 12. g3 {[%clk 0:01:45.4]} 12...
Bf6 {[%clk 0:02:23.4]} 13. Bxf6 {[%clk 0:01:43.2]} 13... Rxf6 {[%clk 0:02:13.2]}
14. O-O {[%clk 0:01:40.7]} 14... e5 {[%clk 0:02:11.3]} 15. Nxe5 {[%clk
0:01:33.3]} 15... Nxe5 {[%clk 0:02:11.2]} 16. fxe5 {[%clk 0:01:33.9]} 16... Qxe5
{[%clk 0:02:11.4]} 17. Bf3 {[%clk 0:01:34.2]} 17... Be6 {[%clk 0:01:54.3]} 18.
Rae1 {[%clk 0:01:30.6]} 18... Qd4 {[%clk 0:01:39.6]} 19. c4 {[%clk 0:01:00.3]}
19... Nb4 {[%clk 0:01:30.3]} 20. a3 {[%clk 0:00:59.4]} 20... Nc6 {[%clk
0:01:28.3]} 21. Rxe6 {[%clk 0:00:59]} 21... Rxe6 {[%clk 0:01:24.7]} 22. Bd5
{[%clk 0:00:58.1]} 22... Re8 {[%clk 0:01:24.4]} 23. Re1 {[%clk 0:00:57.7]} 23...
Ne5 {[%clk 0:01:18.8]} 24. Bxe6+ {[%clk 0:00:42.8]} 24... Rxe6 {[%clk
0:01:16.5]} 25. Kg2 {[%clk 0:00:43.4]} 25... Kf7 {[%clk 0:00:58.6]} 26. Qe3
{[%clk 0:00:37.1]} 26... Qxe3 {[%clk 0:00:51.7]} 27. Rxe3 {[%clk 0:00:36.8]}
27... Nc6 {[%clk 0:00:50.8]} 28. Rxe6 {[%clk 0:00:22.8]} 28... Kxe6 {[%clk
0:00:50.4]} 29. Nh3 {[%clk 0:00:23.6]} 29... h6 {[%clk 0:00:47.4]} 30. Nf4+
{[%clk 0:00:14.7]} 30... Ke5 {[%clk 0:00:47.3]} 31. Ne2 {[%clk 0:00:06.5]} 31...
Nd4 {[%clk 0:00:44.1]} 32. Nc1 {[%clk 0:00:03.4]} 32... Nc2 {[%clk 0:00:38.8]}
0-1